Cogmind - Beta 13 @@@ ROGUE MODE // 2024.04.18 @ 11:22:06 Player: RedEssence Result: Destroyed by D-53 Grenadier with Mini Grenade Launcher Performance ------------- Evolutions (0) 0 Regions Visited (2) 400 Robots Destroyed (14) 70 Value Destroyed (387) 387 Prototype IDs (0) 0 Alien Tech Used (0) 0 Bonus (0) 0 TOTAL SCORE: 857 Bonus ------- None Cogmind --------- Core Integrity 0/250 Matter 285/300 Energy 98/100 System Corruption 0% Temperature Cool (0) Movement Walking (190) Ox1 Location -10/Mines Parts ------- > --- POWER (1) -------- (None) > --- PROPULSION (2) --- Aluminum Leg Aluminum Leg > --- UTILITY (2) ------ Large Storage Unit Core Shielding > --- WEAPON (2) ------- Beam Cannon Mining Claw > --- INVENTORY (15) --- Light Nuclear Core Aluminum Leg Aluminum Leg Heat Sink Sensor Array Sensor Array Sensor Array Signal Interpreter Small Laser Particle Gun Light Assault Rifle Rocket Launcher Peak State ------------ > --- POWER ------------ Ion Engine > --- PROPULSION ------- Aluminum Leg Aluminum Leg > --- UTILITY ---------- Large Storage Unit Core Shielding > --- WEAPON ----------- Small Laser Light Assault Rifle > --- INVENTORY -------- Ion Engine Ion Engine Light Ion Engine Light Treads Light Treads Heat Sink Sensor Array Small Laser Particle Gun [Rating: 8] Favorites ----------- Power Ion Engine Engine Ion Engine Propulsion Aluminum Leg Treads Light Treads Leg Aluminum Leg Utility Large Storage Unit Storage Large Storage Unit Protection Core Shielding Weapon Light Assault Rifle Energy Gun Small Laser Energy Cannon Beam Cannon Ballistic Gun Light Assault Rifle Slashing Weapon Mining Claw Build | -11 -10 -10 ------- Run | Yrd Mat Min Slots Evolved . | . . . Power . | . . . Propulsion . | . . . Utility . | . . . Weapon . | . . . Parts Attached 19 | 6 5 8 Power 4 | 1 1 2 Engine 4 | 1 1 2 Core . | . . . Reactor . | . . . Propulsion 6 | 2 . 4 Treads 2 | . . 2 Leg 4 | 2 . 2 Wheel . | . . . Hover . | . . . Flight . | . . . Utility 4 | 1 3 . Device . | . . . Storage 3 | 1 2 . Processor . | . . . Hackware . | . . . Protection 1 | . 1 . Artifact . | . . . Weapon 5 | 2 1 2 Energy Gun 1 | 1 . . Energy Cannon 1 | . . 1 Ballistic Gun 2 | 1 1 . Ballistic Cannon . | . . . Launcher . | . . . Special Weapon . | . . . Impact Weapon . | . . . Slashing Weapon 1 | . . 1 Piercing Weapon . | . . . Special Melee Weapon . | . . . Unidentified Prototypes . | . . . Parts Lost 8 | . 1 7 Power 2 | . . 2 Propulsion 4 | . . 4 Utility . | . . . Weapon 2 | . 1 1 Highest Loss Streak 4 | . 1 4 To Critical Strikes . | . . . Average Slot Usage (%) 93 | . 91 98 Engine 13 | . 13 13 Treads 7 | . . 26 Leg 20 | . 28 . Storage 14 | . 14 14 Protection 8 | . 6 14 Energy Gun 11 | . 14 6 Energy Cannon 2 | . . 7 Ballistic Gun 13 | . 13 12 Naked Turns . | . . . Heaviest Build 31 | 13 28 31 Greatest Support 40 | 20 20 40 Greatest Overweight (x) 1 | . 1 1 Average Overweight (x) . | . . . Largest Inventory Capacity 15 | 8 15 15 Average Capacity 13 | 6 12 15 Most Carried 15 | 5 15 15 Average Carried 11 | 3 10 14 Final Capacity 15 | 8 15 15 Final Carried 15 | 4 15 12 Class Distribution -------------------- 100% | Mutant Dominant Class ---------------- Mutant | -10/Materials Mutant | -10/Mines Resources | -11 -10 -10 ----------- Run | Yrd Mat Min Matter Collected 422 | 183 178 61 Remotely . | . . . Salvage Created 516 | . 334 182 Parts 35 | . 25 10 Haulers Intercepted . | . . . Recyclers Shooed . | . . . Parts Field Recycled . | . . . Retrieved Matter . | . . . Parts Self-Destructed . | . . . Prevented . | . . . Kills | -11 -10 -10 ------- Run | Yrd Mat Min Combat Hostiles Destroyed 14 | . 8 6 Melee 2 | . . 2 Guns 10 | . 8 2 Cannons 2 | . . 2 Classes Destroyed 5 | . 4 1 Worker 1 | . 1 . Watcher 2 | . 2 . Swarmer 3 | . 3 . Grunt 8 | . 5 3 Assembled 3 | . . 3 Best Kill Streak 4 | . 4 3 Combat Bots Only 3 | . 3 3 Max Kills in Single Turn 2 | . 2 1 Gunslinging 1 | . 1 . Exploded . | . . . Melee 1 | . . 1 Uniques/NPCs Destroyed . | . . . Combat | -11 -10 -10 -------- Run | Yrd Mat Min Hostile Shots Fired 111 | . 47 64 Missed 34 | . 18 16 Damage Taken 1493 | . 449 1044 Core 258 | . 30 228 Absorbed by Shields . | . . . Redirected to Shielding 48 | . . 48 Regen/Repaired (Parts) 59 | . 59 . Core Remaining (%) 100 | 100 . . Volleys Fired 67 | . 46 21 Largest 2 | . 2 2 Hottest 80 | . 60 80 Shots Fired 125 | . 89 36 Gun 113 | . 89 24 Cannon 12 | . . 12 Launcher . | . . . Special . | . . . Kinetic 62 | . 46 16 Thermal 63 | . 43 20 Explosive . | . . . Electromagnetic . | . . . Robot Hit Streak 8 | . 8 4 Robot Miss Streak 5 | . 5 3 Penetration Max . | . . . Secondary Targets 3 | . 2 1 Max Gunslinging Chain 1 | . 1 1 Shots Hit Robots 74 | . 51 23 Core Hits 37 | . 23 14 Critical Kills . | . . . Critical Parts Destroyed . | . . . Critical Strikes . | . . . Melee Attacks 5 | . . 5 Impact . | . . . Slashing 5 | . . 5 Piercing . | . . . Sneak Attacks . | . . . Combat Hostiles . | . . . Follow-up Attacks . | . . . Damage Inflicted 933 | . 567 366 Guns 712 | . 567 145 Cannons 104 | . . 104 Explosions . | . . . Melee 117 | . . 117 Ramming . | . . . Kinetic 358 | . 269 89 Thermal 458 | . 298 160 Explosive . | . . . Electromagnetic . | . . . Impact . | . . . Slashing 117 | . . 117 Piercing . | . . . Highest Corruption . | . . . Average Corruption . | . . . Corruption Purged . | . . . Corruption Blocked . | . . . Overload Shots . | . . . Overflow Damage 19 | . . 19 Projectiles . | . . . Explosions . | . . . Melee 19 | . . 19 Knockbacks . | . . . Impact . | . . . Kinetic . | . . . Secondary . | . . . Self-Inflicted Damage . | . . . Shots . | . . . Rammed . | . . . Targets Rammed . | . . . Kicked . | . . . Crushed . | . . . Highest Temperature 181 | . 112 181 Average Temperature 38 | . 32 47 Received Heat Transfer 360 | . 192 168 Siege Activations . | . . . Robots Corrupted . | . . . Combat Hostiles . | . . . Parts Fried . | . . . Impact Corruptions . | . . . Robots Melted . | . . . Combat Hostiles . | . . . Parts Melted 1 | . 1 . Heat Transferred 1022 | . 675 347 Parts Sabotaged . | . . . Parts Stolen . | . . . Parts Stripped . | . . . Power Chain Reactions . | . . . Alert | -11 -10 -10 ------- Run | Yrd Mat Min Peak Influence 189 | . 189 85 Initial . | . . . Average 59 | . 66 49 Maximum Alert Level . | . . . Low Security (%) 100 | 100 100 100 Level 1 . | . . . Level 2 . | . . . Level 3 . | . . . Level 4 . | . . . Level 5 . | . . . High Security . | . . . Max Security . | . . . Squads Dispatched 2 | . 2 . Investigation 1 | . 1 . Extermination . | . . . Reinforcement 1 | . 1 . Assault . | . . . Garrison . | . . . Intercept . | . . . Searches Triggered . | . . . Construction Impeded . | . . . Haulers Reinforced . | . . . Active Scanning Responses . | . . . Cargo Convoy Interrupts . | . . . Stealth | -11 -10 -10 --------- Run | Yrd Mat Min Distress Signals 2 | . 2 . Communications Jammed . | . . . Distress Signals . | . . . Times Spotted 33 | . 19 14 Peak Tracking Total 6 | . 6 5 Tactical Retreats 3 | . 1 2 Traps | -11 -10 -10 ------- Run | Yrd Mat Min Traps Triggered 1 | . 1 . Indirectly . | . . . Trap Hack Attempts . | . . . Triggered . | . . . Disarmed . | . . . Reprogrammed . | . . . Reused . | . . . Traps Extracted . | . . . Installed . | . . . Triggered . | . . . Machines | -11 -10 -10 ---------- Run | Yrd Mat Min Machines Disabled . | . . . Max in Single Turn . | . . . Machines Repaired . | . . . Machines Dismantled . | . . . Machines Sabotaged . | . . . Overloaded Fab Kills . | . . . Hacking | -11 -10 -10 --------- Run | Yrd Mat Min Machines Accessed 7 | . 7 . Terminals 5 | . 5 . Fabricators . | . . . Repair Stations 1 | . 1 . Recycling Units 1 | . 1 . Scanalyzers . | . . . Garrison Access . | . . . Total Hacks 13 | . 13 . Successful 9 | . 9 . Failed 4 | . 4 . Catastrophic 2 | . 2 . Database Lockouts . | . . . Manual 1 | . 1 . Terminals 6 | . 6 . Fabricators . | . . . Repair Stations 4 | . 4 . Recycling Units 3 | . 3 . Scanalyzers . | . . . Garrison Access . | . . . Terminal Hacks 4 | . 4 . Alert Level 1 | . 1 . Recall Reinforcements 1 | . 1 . Zone Layout 2 | . 2 . Fabricator Hacks . | . . . Repair Station Hacks 2 | . 2 . Scan Component 1 | . 1 . Repair 1 | . 1 . Recycling Unit Hacks 3 | . 3 . Process 1 | . 1 . Report Inventory 1 | . 1 . Retrieve Matter 1 | . 1 . Scanalyzer . | . . . Garrison Access Hacks . | . . . Unauthorized Hacks . | . . . Terminals . | . . . Fabricators . | . . . Repair Stations . | . . . Recycling Units . | . . . Scanalyzers . | . . . Garrison Access . | . . . Data Cores Recovered . | . . . Used . | . . . Hacking Detections 4 | . 4 . Full Trace Events 1 | . 1 . Feedback Events . | . . . Feedback Blocked . | . . . Robot Schematics Acquired . | . . . Robots Built . | . . . Authchips . | . . . Time . | . . . Total Robot Build Rating . | . . . Part Schematics Acquired . | . . . Parts Built . | . . . Authchips . | . . . Time . | . . . Total Part Build Rating . | . . . Parts Repaired 1 | . 1 . Time 26 | . 26 . Parts Recycled . | . . . Recycled Matter 181 | . 181 . Retrieved Matter 336 | . 336 . Retrieved Components . | . . . Parts Scanalyzed . | . . . Part Schematics Acquired . | . . . Parts Damaged . | . . . Bothacking | -11 -10 -10 ------------ Run | Yrd Mat Min Used RIF Installer . | . . . Robots Hacked . | . . . Non-combat . | . . . Combat . | . . . Robot Hacks Applied . | . . . Relay Couplers Released . | . . . Fabnet Peak Effective % . | . . . Robots Rewired . | . . . Allies Hacked . | . . . Hacks Repelled . | . . . Allies | -11 -10 -10 -------- Run | Yrd Mat Min Total Allies . | . . . Largest Group . | . . . Highest-Rated Group . | . . . Highest-Rated Ally . | . . . Total Orders . | . . . Ally Attacks . | . . . Total Damage . | . . . Kills . | . . . Allies Corrupted . | . . . Allies Melted . | . . . Intel | -11 -10 -10 ------- Run | Yrd Mat Min Robot Analysis Total . | . . . Derelict Logs Recovered 2 | . . 2 Drone Launches . | . . . Drone Recoveries . | . . . Exploration | -11 -10 -10 ------------- Run | Yrd Mat Min Turns Passed 1804 | 66 1243 495 Spaces Moved 964 | 50 667 247 Core 17 | 17 . . Treads 243 | . . 243 Legs 704 | 33 667 4 Wheels . | . . . Hover . | . . . Flight . | . . . Fastest Speed 50 | 50 120 160 Average Speed 153 | 96 154 162 Slowest Speed 240 | 120 190 240 Overloaded Moves . | . . . Propulsion Burnouts . | . . . Robots Hopped . | . . . Cave-ins Triggered . | . . . Exploration Rate (%) 53 | 3 93 64 Regions Visited 2 Branch Regions 1 Pre-discovered Areas . | . . . Known Exits Taken . | . . . Unknown Exits Taken 2 | 1 1 . Scrap Searched . | . . . Spaces Dug . | . . . Terrain Destroyed . | . . . Melee . | . . . Projectile . | . . . AOE . | . . . Terrain Rammed . | . . . Walls Destroyed . | . . . Machines Disabled . | . . . Actions | -11 -10 -10 --------- Run | Yrd Mat Min Total 1166 | 69 798 299 Wait 64 | . 53 11 Move 962 | 49 666 247 Hop . | . . . Pick Up 38 | 12 21 5 Fast Attach . | . . . Attach 15 | 6 3 6 Detach . | . . . Swap 4 | . 2 2 Drop 11 | 2 7 2 Fire 67 | . 46 21 Melee 5 | . . 5 Ram . | . . . Kick . | . . . Crush . | . . . Escape Stasis . | . . . Rewire . | . . . Trap . | . . . Miscellaneous . | . . . Route ------- -11/Scrapyard -10/Materials (discovered 3 exits: [*Mat x2] / [*Min]) -10/Mines (discovered 1 exit: [*Mat]) History --------- Turn | Location | Event 5 | -11/Scrapyard | Discovered new exit (range 14) 67 | -11/Scrapyard | Entered Materials 307 | -10/Materials | Build established: Mutant 351 | -10/Materials | Discovered new exit (range 16) 724 | -10/Materials | Discovered new exit (range 15) 1002 | -10/Materials | Discovered new exit (range 13) 1186 | -10/Materials | Repaired Ion Engine 1310 | -10/Materials | Entered Mines 1388 | -10/Mines | Discovered new exit (range 16) 1400 | -10/Mines | Learned Materials interactive machine intel 1452 | -10/Mines | Learned Materials security intel 1688 | -10/Mines | Received a Rocket Launcher from a helpful Derelict 1735 | -10/Mines | Assembled infested the area 1773 | -10/Mines | Core integrity fell below 50% 1798 | -10/Mines | Core integrity fell below 20% 1805 | -10/Mines | Destroyed by D-53 Grenadier with Mini Grenade Launcher Last Messages --------------- as-89690 destroyed. as-92360 destroyed. as-52675 destroyed. Lgt. Treads destroyed. as-59570 destroyed. Acquired 10 matter. U-05 Engineer lays Concrete. Destroyed Asb. Hover Unit. as-13236 destroyed. U-05 Engineer lays Concrete. Acquired 11 matter. U-05 Engineer builds a Wall. U-05 Engineer lays Concrete. U-05 Engineer builds a Wall. U-05 Engineer lays Concrete. U-05 Engineer builds a Wall. U-05 Engineer lays Concrete. Lgt. Treads destroyed. Ion Engine destroyed. U-05 Engineer lays Concrete. Map ----- +----------------------------------------------------+ | ## ##### ######## #??## ##?????????????? | | #### ##????????????? | | #????????????? | | ############### ##### #????????????? | | ??????????????# ##??# #????????????? | | ??????????????## #???# """ #????????????? | | ???????????????## #??## """ ##???????????? | | ###########?????# #???# """ #???????????? | | #?????## ##???# #?????????? | | ######### #??????#####????# ## #????????? | | ????????# #??????????????## #?# ## ?????? | | ????????# ####??????????## #?? #?? ####??????? | | ????????# #????????### #?? #????#?????????? | | ????????#### #???????## = #??$ ####???????????? | | ???????????# #??????## ##??? #???????????? | | ???????????# #?????##!! ##???? #???????????? | | ???????????# #????##!%* #??????# #???????????? | | ???????????# ##??##%[! a#####??# ##??????????? | | ??????????## #### ! a # ##?# ##?????????? | | ??????????# ## * ## ### ##????????? | | ?????????## #### ## #????????? | | ???????### #??# ##???????? | | ??????## #### d # | | ??????# % ## d % "" | | ?###### # "" | | ?# =* @ ### ## "" | | ?# [%* # ### "" | | ?# ######## [* # ## #????? | | ?# #??????## ### #######""" #??????? | | ?# ##??????#####?######??????""" ##????????? | | ## ##???????????????????????""" # ####?????????? | | #??????????????????????? # #????????????? | | ################????????????## #????????????? | | #?????????????? ?????????????? | | ############# #????????#####? ?????????????? | | #???######### ##########*[!## #????????????? | | #???# !%[ # #????????????? | | ##??# $ %* #????????????? | | #### ## ######### ####????????????? | | ## ????????## #???????????????? | | ## ??????????# # #??????????????? | | #######???????????# ## ##??????????????? | | ##?????????????????# #####???????????????? | | ####??????????????????# #???????????????????? | | #????????????????????? #???????????????????? | | ##??????????????????? ???????????????????? | | # #??????????????????? ???????????????????? | | # #????????????????? ???????????????????? | | #???????????????? ## ??????????????????? | | < #????????????????#?## ??????????????????? | +----------------------------------------------------+ Best States ------------- Heat Dissipation 25 Energy Generation 10 Energy Capacity 250 Matter Stores 300 Matter Capacity 300 Sight Range 16 Terrain Scan Density 10 Core Shielding 20 Evasion (%) 55 Recoil Reduction 2 Item Schematics ----------------- None Robot Schematics ------------------ None Fabricated ------------ Nothing Alien Tech Used ----------------- None Achievements -------------- None Challenges ------------ None Game ------ Seed UltimateRefineryDesublimator Manual? 0 Play Time 00:24:59 Cumulative 12.1 hours Start 2024.04.18 @ 10:51:10 End 2024.04.18 @ 11:22:06 Sessions 1 Manual Loads 0 Difficulty Rogue Special Mode None Game No. 7 Rogue 7 Adventurer 0 Explorer 0 Win Type - Total 0 Types 0/0/0/0/0/0/0/0/0 Lore% 3 Gallery% 17 Achievement% 13 Wizard Run 0 Options --------- Layout 0 ASCII 0 Keyboard 0 Movement Arrows Keybinds 0 Fullscreen 1 Font 24/Smallcaps Map View 76x50 Zoom Use 0% Tactical HUD 0 Map Filters NONE Filters NONE Steam 1 RUN: 32ffe970-53a6-4919-bea0-29d698e6666d